Cogmind - Beta 16.1 @@@ ROGUE MODE // 2026.04.08 @ 20:41:12 Player: Maelyn Result: Destroyed by S-10 Pest with Light Assault Rifle Performance ------------- Evolutions (0) 0 Regions Visited (3) 600 Robots Destroyed (30) 150 Value Destroyed (493) 493 Prototype IDs (1) 20 Alien Tech Used (0) 0 Bonus (0) 0 TOTAL SCORE: 1263 Bonus ------- None Cogmind --------- Core Integrity 0/250 Matter 250/300 Energy 94/100 System Corruption 0% Temperature Cool (0) Movement Core (200) Ox3 Location -10/Subcaves Parts ------- > --- POWER (1) -------- (None) > --- PROPULSION (2) --- (None) > --- UTILITY (2) ------ Medium Storage Unit Subdweller Optics > --- WEAPON (2) ------- (None) > --- INVENTORY (10) --- Light Ion Engine Wheel Scrap Suit Medium Matter Pod (0) Improved Terrain Scanner Targeting Computer Core Shielding Hacking Suite Medium Laser Peak State ------------ > --- POWER ------------ Light Angular Momentum Engine > --- PROPULSION ------- Carbon-fiber Leg Carbon-fiber Leg > --- UTILITY ---------- Medium Storage Unit Experimental Sensor Array > --- WEAPON ----------- Beamcaster Light Assault Rifle > --- INVENTORY -------- Light Ion Engine Wheel Scrap Suit Medium Matter Pod Improved Terrain Scanner Targeting Computer Core Shielding Hacking Suite Small Laser [Rating: 29] Favorites ----------- Power Light Angular Momentum Engine Engine Light Angular Momentum Engine Propulsion Aluminum Leg Treads Light Treads Leg Aluminum Leg Wheel Compact Wheel Utility Medium Storage Unit Device Experimental Sensor Array Storage Medium Storage Unit Protection Light Armor Plating Weapon Light Assault Rifle Energy Gun Beamcaster Ballistic Gun Light Assault Rifle Build | -11 -10 -10 -10 ------- Run | Yrd Mat Min Sub Slots Evolved . | . . . . Power . | . . . . Propulsion . | . . . . Utility . | . . . . Weapon . | . . . . Parts Attached 24 | 7 9 7 1 Power 4 | 1 1 2 . Engine 4 | 1 1 2 . Core . | . . . . Reactor . | . . . . Propulsion 8 | 2 4 2 . Treads 2 | 2 . . . Leg 4 | . 2 2 . Wheel 2 | . 2 . . Hover . | . . . . Flight . | . . . . Utility 6 | 2 2 1 1 Device 3 | 1 . 1 1 Storage 2 | 1 1 . . Processor . | . . . . Hackware . | . . . . Protection 1 | . 1 . . Artifact . | . . . . Weapon 6 | 2 2 2 . Energy Gun 3 | . 1 2 . Energy Cannon . | . . . . Ballistic Gun 3 | 2 1 . . Ballistic Cannon . | . . . . Launcher . | . . . . Special Weapon . | . . . . Impact Weapon . | . . . . Slashing Weapon . | . . . . Piercing Weapon . | . . . . Special Melee Weapon . | . . . . Unidentified Prototypes 1 | . . 1 . Parts Lost 11 | . 2 3 6 Power 3 | . 1 1 1 Propulsion 2 | . . . 2 Utility 3 | . 1 1 1 Weapon 3 | . . 1 2 Highest Loss Streak 4 | . 1 1 4 To Critical Strikes . | . . . . Average Backups 8 | 6 8 9 9 Power 1 | 1 1 1 1 Propulsion 2 | 3 3 1 1 Utility 3 | . 1 5 6 Weapon . | . 1 . 1 Tool/Special . | . . . . Unused Backups 10 | . . 1 9 Power 2 | . . 1 1 Propulsion 1 | . . . 1 Utility 6 | . . . 6 Weapon 1 | . . . 1 Tool/Special . | . . . . Average Slot Usage (%) 93 | . 97 94 74 Engine 12 | . 13 14 5 Treads 4 | . 13 . . Leg 21 | . 13 28 19 Device 5 | . 2 6 12 Storage 14 | . 14 14 14 Protection 4 | . 9 2 . Energy Gun 11 | . 5 12 20 Ballistic Gun 15 | . 22 15 . Peak Build Rating 29 | 8 8 29 29 Average Rating 13 | 5 7 18 16 On Entrance 11 | . 8 8 29 Avg Prop Armor Cover (%) . | . . . . Naked Turns . | . . . . Heaviest Build 26 | 13 21 26 26 Greatest Support 40 | 40 40 30 30 Greatest Overweight (x) 1 | . 1 . . Average Overweight (x) . | . . . . Largest Inventory Capacity 10 | 8 10 10 10 Average Capacity 9 | 7 8 10 10 Most Carried 10 | 8 10 10 10 Average Carried 8 | 6 8 9 10 Final Capacity 10 | 8 10 10 10 Final Carried 10 | 8 9 10 10 Class Distribution -------------------- 68% | Mutant 31% | Scavenger-Mutant Dominant Class ---------------- Mutant | -10/Materials Scavenger-Mutant | -10/Mines Mutant | -10/Subcaves Resources | -11 -10 -10 -10 ----------- Run | Yrd Mat Min Sub Matter Collected 551 | 145 102 271 33 Remotely . | . . . . Salvage Created 759 | 83 311 275 90 Parts 48 | 11 14 20 3 Haulers Intercepted 1 | . 1 . . Recyclers Shooed 2 | 1 1 . . Parts Field Recycled . | . . . . Retrieved Matter . | . . . . Parts Self-Destructed 4 | . . . 4 Prevented . | . . . . Parts Restored . | . . . . Kills | -11 -10 -10 -10 ------- Run | Yrd Mat Min Sub Combat Hostiles Destroyed 20 | . 7 11 2 Guns 20 | . 7 11 2 Classes Destroyed 8 | 1 5 1 1 Worker 1 | . . 1 . Tunneler 6 | 5 . 1 . Hauler 1 | . 1 . . Operator 1 | . 1 . . Watcher 1 | . 1 . . Swarmer 12 | . 3 9 . Grunt 7 | . 4 2 1 Sentry 1 | . . . 1 Best Kill Streak 3 | 3 3 3 2 Combat Bots Only 3 | . 3 3 2 Max Kills in Single Turn 1 | 1 1 1 1 Gunslinging . | . . . . Exploded . | . . . . Melee . | . . . . Uniques/NPCs Destroyed . | . . . . Combat | -11 -10 -10 -10 -------- Run | Yrd Mat Min Sub Hostile Shots Fired 217 | . 74 96 47 Missed 68 | . 19 30 19 Hits 149 | . 55 66 28 Projectile 149 | . 55 66 28 Damage Taken 1415 | . 564 579 272 Core 250 | . 55 111 84 Absorbed by Shields . | . . . . Core Remaining (%) 100 | 100 . . . Volleys Fired 132 | 19 59 44 10 Largest 2 | 2 2 2 2 Hottest 115 | 40 60 95 115 Shots Fired 260 | 38 118 88 16 Gun 260 | 38 118 88 16 Cannon . | . . . . Launcher . | . . . . Special . | . . . . Kinetic 216 | 38 107 71 . Thermal 33 | . . 17 16 Explosive . | . . . . Electromagnetic 11 | . 11 . . Robot Hit Streak 15 | 12 10 15 5 Robot Miss Streak 7 | 4 7 4 1 Penetration Max . | . . . . Secondary Targets 4 | . 1 2 1 Max Gunslinging Chain 1 | . 1 1 1 Shots Hit Robots 155 | 27 63 54 11 Core Hits 59 | 10 21 25 3 Critical Kills . | . . . . Critical Parts Destroyed . | . . . . Critical Strikes 2 | . . 1 1 Burn 2 | . . 1 1 Melee Attacks . | . . . . Impact . | . . . . Slashing . | . . . . Piercing . | . . . . Sneak Attacks . | . . . . Combat Hostiles . | . . . . Follow-up Attacks . | . . . . Damage Inflicted 1695 | 233 583 698 181 Guns 1695 | 233 583 698 181 Cannons . | . . . . Explosions . | . . . . Melee . | . . . . Ramming . | . . . . Kinetic 1138 | 233 495 410 . Thermal 469 | . . 288 181 Explosive . | . . . . Electromagnetic 88 | . 88 . . Impact . | . . . . Slashing . | . . . . Piercing . | . . . . Highest Corruption . | . . . . Average Corruption . | . . . . Corruption Purged . | . . . . Corruption Blocked . | . . . . Overload Shots . | . . . . Overflow Damage . | . . . . Projectiles . | . . . . Explosions . | . . . . Melee . | . . . . Knockbacks . | . . . . Impact . | . . . . Kinetic . | . . . . Secondary . | . . . . Self-Inflicted Damage . | . . . . Shots . | . . . . Rammed . | . . . . Targets Rammed . | . . . . Kicked . | . . . . Crushed . | . . . . Highest Temperature 402 | . 69 402 29 Average Temperature 70 | . 17 122 15 Received Heat Transfer 378 | . 210 69 99 Effects 5 | . . 5 . Shutdowns 1 | . . 1 . Damage (major) 4 | . . 4 . Siege Activations . | . . . . Martial Activations . | . . . . Shielding Activations . | . . . . Robots Disrupted . | . . . . Combat Hostiles . | . . . . Robots Corrupted . | . . . . Combat Hostiles . | . . . . Parts Fried . | . . . . Impact Corruptions . | . . . . Robots Melted . | . . . . Combat Hostiles . | . . . . Parts Melted 1 | . . 1 . Heat Transferred 1026 | . . 592 434 Parts Sabotaged . | . . . . Parts Stolen . | . . . . Parts Stripped . | . . . . Power Chain Reactions . | . . . . Alert | -11 -10 -10 -10 ------- Run | Yrd Mat Min Sub Maximum Alert Level . | . . . . Low Security (%) 100 | 100 100 100 . Level 1 . | . . . . Level 2 . | . . . . Level 3 . | . . . . Level 4 . | . . . . Level 5 . | . . . . High Security . | . . . . Max Security . | . . . . Peak Influence 70 | 10 70 70 . Initial . | . . . . Average 17 | 1 17 21 . Influence Increases 539 | 25 189 285 40 Destroy 0b10 Robot/C 400 | . 140 220 40 Destroy 0b10 Robot/NC 50 | 25 15 10 . Destroy Leader 74 | . 34 40 . Lose Combat Pursuer 15 | . . 15 . Influence Decreases 539 | 25 189 285 40 Time Decay 489 | 25 169 275 20 Lost Part 50 | . 20 10 20 Squads Dispatched 2 | . 2 . . Investigation . | . . . . Extermination . | . . . . Reinforcement 2 | . 2 . . Assault . | . . . . Garrison . | . . . . Intercept . | . . . . Searches Triggered . | . . . . Construction Impeded . | . . . . Haulers Reinforced . | . . . . Active Scanning Responses . | . . . . Cargo Convoy Interrupts . | . . . . Stealth | -11 -10 -10 -10 --------- Run | Yrd Mat Min Sub Distress Signals 1 | . 1 . . Communications Jammed . | . . . . Distress Signals . | . . . . Times Spotted 38 | . 17 12 9 Peak Tracking Total 5 | . 4 3 5 Tactical Retreats 1 | . . 1 . Traps | -11 -10 -10 -10 ------- Run | Yrd Mat Min Sub Traps Triggered . | . . . . Indirectly . | . . . . Trap Hack Attempts . | . . . . Triggered . | . . . . Disarmed . | . . . . Reprogrammed . | . . . . Reused . | . . . . Traps Extracted . | . . . . Installed . | . . . . Triggered . | . . . . Machines | -11 -10 -10 -10 ---------- Run | Yrd Mat Min Sub Machines Disabled . | . . . . Max in Single Turn . | . . . . Machines Repaired . | . . . . Machines Dismantled . | . . . . Machines Sabotaged . | . . . . Overloaded Fab Kills . | . . . . Hacking | -11 -10 -10 -10 --------- Run | Yrd Mat Min Sub Machines Accessed . | . . . . Terminals . | . . . . Fabricators . | . . . . Repair Stations . | . . . . Recycling Units . | . . . . Scanalyzers . | . . . . Garrison Access . | . . . . Total Hacks . | . . . . Successful . | . . . . Failed . | . . . . Catastrophic . | . . . . Database Lockouts . | . . . . Manual . | . . . . Terminals . | . . . . Fabricators . | . . . . Repair Stations . | . . . . Recycling Units . | . . . . Scanalyzers . | . . . . Garrison Access . | . . . . Terminal Hacks . | . . . . Fabricator Hacks . | . . . . Repair Station Hacks . | . . . . Recycling Unit Hacks . | . . . . Scanalyzer . | . . . . Garrison Access Hacks . | . . . . Unauthorized Hacks . | . . . . Terminals . | . . . . Fabricators . | . . . . Repair Stations . | . . . . Recycling Units . | . . . . Scanalyzers . | . . . . Garrison Access . | . . . . Data Cores Recovered . | . . . . Used . | . . . . Hacking Detections . | . . . . Full Trace Events . | . . . . Feedback Events . | . . . . Feedback Blocked . | . . . . Robot Schematics Acquired . | . . . . Robots Built . | . . . . Authchips . | . . . . Time . | . . . . Total Robot Build Rating . | . . . . Part Schematics Acquired . | . . . . Parts Built . | . . . . Authchips . | . . . . Time . | . . . . Total Part Build Rating . | . . . . Part Studies Acquired . | . . . . Parts Repaired . | . . . . Time . | . . . . Parts Recycled . | . . . . Recycled Matter . | . . . . Retrieved Matter . | . . . . Retrieved Components . | . . . . Parts Scanalyzed . | . . . . Part Schematics Acquired . | . . . . Parts Damaged . | . . . . Bothacking | -11 -10 -10 -10 ------------ Run | Yrd Mat Min Sub Used RIF Installer . | . . . . Robots Hacked . | . . . . Non-combat . | . . . . Combat . | . . . . Robot Hacks Applied . | . . . . Relay Couplers Released . | . . . . Fabnet Peak Effective % . | . . . . Robots Rewired . | . . . . Allies Hacked . | . . . . Hacks Repelled . | . . . . Allies | -11 -10 -10 -10 -------- Run | Yrd Mat Min Sub Total Allies . | . . . . Largest Group . | . . . . Highest-Rated Group . | . . . . Highest-Rated Ally . | . . . . Total Orders . | . . . . Ally Attacks . | . . . . Total Damage . | . . . . Kills . | . . . . Allies Corrupted . | . . . . Allies Melted . | . . . . Intel | -11 -10 -10 -10 ------- Run | Yrd Mat Min Sub Active Infowar (turns) 682 | 3 99 422 158 Optics 88 | . . . 88 Sensors 492 | . . 422 70 Seismic 102 | 3 99 . . Robot Analysis Total . | . . . . Derelict Logs Recovered 1 | . . 1 . Drone Launches . | . . . . Drone Recoveries . | . . . . Exploration | -11 -10 -10 -10 ------------- Run | Yrd Mat Min Sub Turns Passed 1840 | 222 550 894 174 Spaces Moved 1141 | 105 285 629 122 Core 12 | 12 . . . Treads 188 | 93 95 . . Legs 917 | . 166 629 122 Wheels 24 | . 24 . . Hover . | . . . . Flight . | . . . . Fastest Speed 50 | 50 100 120 120 Average Speed 125 | 147 131 120 120 Slowest Speed 190 | 160 190 120 120 Overloaded Moves . | . . . . Propulsion Burnouts . | . . . . Robots Hopped . | . . . . Potential Cave-ins . | . . . . Cave-ins Triggered . | . . . . Exploration Rate (%) 37 | 3 41 95 11 Regions Visited 3 Branch Regions 2 Pre-discovered Areas 1 | . . . 1 Known Exits Taken . | . . . . Unknown Exits Taken 3 | 1 1 1 . Scrap Searched 1 | . . 1 . Spaces Dug . | . . . . Terrain Destroyed . | . . . . Melee . | . . . . Projectile . | . . . . AOE . | . . . . Terrain Rammed . | . . . . Walls Destroyed . | . . . . Machines Disabled . | . . . . Actions | -11 -10 -10 -10 --------- Run | Yrd Mat Min Sub Total 1332 | 139 361 699 133 Wait 5 | . . 5 . Move 1138 | 104 284 628 122 Hop . | . . . . Pick Up 21 | 9 5 7 . Fast Attach 9 | 6 1 1 1 Attach 4 | 1 1 2 . Detach . | . . . . Swap 11 | . 7 4 . Drop 12 | . 4 8 . Fire 132 | 19 59 44 10 Melee . | . . . . Ram . | . . . . Kick . | . . . . Crush . | . . . . Escape Stasis . | . . . . Rewire . | . . . . Trap . | . . . . Miscellaneous . | . . . . Route ------- -11/Scrapyard -10/Materials (discovered 4 exits: [*Mat] / [*Min x2] / [*Sub]) -10/Mines (discovered 3 exits: [*Mat x2] / [*Sub]) -10/Subcaves History --------- Turn | Location | Event 2 | -11/Scrapyard | Met Revision 17 12 | -11/Scrapyard | Discovered new exit (range 16) 223 | -11/Scrapyard | Entered Materials 263 | -10/Materials | Discovered new exit (range 15) 317 | -10/Materials | Build established: Mutant 502 | -10/Materials | Discovered new exit (range 15) 618 | -10/Materials | Discovered new exit (range 8) 623 | -10/Materials | Discovered new exit (range 11) 773 | -10/Materials | Entered Mines 805 | -10/Mines | Met a Derelict bent on vengeance 868 | -10/Mines | Found a hidden stash of uninstalled traps 1025 | -10/Mines | Learned location of 1 exit from Materials 1066 | -10/Mines | Found a Scrap Suit stashed away for nefarious purposes 1069 | -10/Mines | Found Scrap Suit 1239 | -10/Mines | Found a damaged Exp. Sensor Array with a note attached 1244 | -10/Mines | Found Prototype Device 1245 | -10/Mines | Identified Exp. Sensor Array 1323 | -10/Mines | Core integrity fell below 50% 1366 | -10/Mines | Discovered new exit (range 8) 1457 | -10/Mines | Build established: Scavenger-Mutant 1490 | -10/Mines | Discovered new exit (range 5) 1657 | -10/Mines | Discovered new exit (range 10) 1667 | -10/Mines | Entered Subcaves 1668 | -10/Subcaves | Approached by a straggling Scientist 1706 | -10/Subcaves | Learned location of Zion (-6) 1706 | -10/Subcaves | Met a Zionite searching for "candidates" 1744 | -10/Subcaves | Core integrity fell below 20% 1774 | -10/Subcaves | Lost 4 parts (1p1n1u1w) 1841 | -10/Subcaves | Destroyed by S-10 Pest with Light Assault Rifle Last Messages --------------- 01734_ Switching to secondary target: Y-45 Defender. 01737_ Ion Engine fries itself beyond repair. 01737_ Lgt. Angular Momentum Engine destroyed. 01737_ Exp. Sensor Array destroyed. 01739_ Heat Sink fries itself beyond repair. 01740_ Y-45 Defender suffers critical hit (Burn). 01743_ Beamcaster destroyed. 01743_ Y-45 Defender destroyed. 01745_ Aluminum Leg fries itself beyond repair. 01746_ Acquired 33 matter. 01753_ Acquired Sub. Optics. 01755_ Subatomizers dissect the Lgt. Treads. 01761_ Lgt. Treads fries itself beyond repair. 66-U9S(c): "I think it's somewhere south of here" 66-U9S(c): "I think it's somewhere southwest of here" 01835_ S-10 Pest destroyed. 01835_ S-10 Pest springs to life. 01837_ Subatomizers dissect the Flight Unit. 01840_ Carbon-fiber Leg destroyed. 01840_ Sml. Laser destroyed. Map ----- +----------------------------------------------------+ | ????????????????????????## #?????????????? | | ?????????????????????????## #?????????????? | | ??????????????????????????## ##????????????? | | ???????????????????????????### #????????????? | | ?????????????????????????????## ###????????????? | | ??????????????????????????????# #??????????????? | | ?????????????????????????????## #??????????????? | | ?????????????????????????????# #??????????????? | | ?????????????????????????????# #??????????????? | | ?????????????????????????????# ##??????????????? | | ?????????????????????????????# ##??????????????? | | ?????????????????????????????## ##?????????????? | | ??????????????????????????????# #?????????????? | | ??????????????????????????????## ##????????????? | | ???????????????????????????????## #????????????? | | ????????????????????????????????# #????????????? | | ????????????????????????????????# #????????????? | | ??????????????????????????????### #????????????? | | ?????????????????????????????## ##????????????? | | ????????????????????????????## ##?????????????? | | ??????????????##??????????### ##??????????????? | | ??????????????#"""???????## ##???????????????? | | ??????????????#" " ?????# ###??????????????? | | ??????????????#" t t ??## #??????????????? | | ??????????????# s # # #?????????????? | | ??????????????#s =%s@#### #?????????????? | | ??????????????#" " ##??## #?????????????? | | ??????????????#### ### ?????? #?????????????? | | ?????????????????# ???#??????? #?????????????? | | ?????????????????#????????????? #?????????????? | | ??????????????????????????????? ##?????????????? | | ??????????????????????????????? ###??????????????? | | ???????????????????????????????#?????????????????? | | ?????????????????????????????????????????????????? | | ?????????????????????????????????????????????????? | | ?????????????????????????????????????????????????? | | ?????????????????????????????????????????????????? | | ?????????????????????????????????????????????????? | | ?????????????????????????????????????????????????? | | ?????????????????????????????????????????????????? | | ?????????????????????????????????????????????????? | | ?????????????????????????????????????????????????? | | ?????????????????????????????????????????????????? | | ?????????????????????????????????????????????????? | | ?????????????????????????????????????????????????? | | ?????????????????????????????????????????????????? | | ?????????????????????????????????????????????????? | | ?????????????????????????????????????????????????? | | ?????????????????????????????????????????????????? | | ?????????????????????????????????????????????????? | +----------------------------------------------------+ Best States ------------- Heat Dissipation 25 Energy Generation 18 Energy Capacity 250 Matter Stores 250 Matter Capacity 300 Sight Range 21 Robot Scan Range 20 Terrain Scan Density 10 Armor Coverage 150 Evasion (%) 55 Recoil Reduction 2 Item Schematics ----------------- None Robot Schematics ------------------ None Fabricated ------------ Nothing Repaired ---------- Nothing Studied --------- None Alien Tech Used ----------------- None Achievements -------------- None Challenges ------------ None Game ------ Seed PiercingNullMultirail Manual? 0 Play Time 00:15:58 Cumulative 22.9 hours Start 2026.04.08 @ 20:25:50 End 2026.04.08 @ 20:41:12 Sessions 1 Manual Loads 0 Difficulty Rogue Special Mode None Game No. 65 Rogue 65 Adventurer 0 Explorer 0 Win Type - Total 0 Types 0/0/0/0/0/0/0/0/0/0 Lore% 10 Gallery% 21 Achievement% 12 Wizard Run 0 Options --------- Layout 1 ASCII 0 Keyboard 0 Movement Mouse Keybinds 0 Fullscreen 0 Font 16/TamsynBold Map View 64x42 Zoom Use 0% Tactical HUD 1 Map Filters NONE Filters NONE Steam 1 RUN: eef1d13a-f4a8-47c9-b1c7-6a6eebf41f43